bitfinex/quotes_SOLUSD_20240829
["timestamp","ask_amount","ask_price","bid_price","bid_amount"]
[1724966347594,17.8747,139.87,139.79,7.1534]
[1724966347595,7.1515,139.83,139.79,7.1534]
[1724966347986,7.1517,139.83,139.78,17.8849]
[1724966348413,7.1517,139.83,139.79,7.1535]
[1724966349197,17.8709,139.9,139.8,62.8823]
[1724966349511,20.0,139.89,139.8,17.8823]
[1724966349808,7.1506,139.85,139.81,7.1524]
[1724966351310,7.1501,139.86,139.82,7.152]
[1724966351605,27.1505,139.85,139.81,7.1524]
[1724966359253,7.1471,139.92,139.87,7.149]
[1724966359547,7.1455,139.95,139.83,6.0828]
[1724966359849,265.51631088,140.0,139.9,7.1478]
[1724966360043,7.1459,139.94,139.9,7.1478]
[1724966360629,7.1459,139.94,139.89,22.6608]
[1724966361649,7.51631088,139.93,139.89,15.5125]
[1724966362058,7.1475,139.91,139.89,15.5125]
[1724966362734,7.1475,139.91,139.86,7.1499]
[1724966364543,25.37941088,139.96,139.85,33.3883]
[1724966364749,17.8665,139.93,139.85,33.3883]
[1724966364944,20.0,139.92,139.85,33.3883]
[1724966365954,7.1475,139.91,139.86,7.1499]
[1724966366851,27.1469,139.92,139.87,7.1491]
[1724966372861,27.1469,139.92,139.85,15.5125]
[1724966373161,20.0,139.92,139.87,17.8733]
[1724966373362,27.1471,139.92,139.88,7.1489]
[1724966374262,27.1471,139.92,139.87,25.0226]
[1724966376373,7.1471,139.92,139.87,25.0226]
[1724966378758,7.1475,139.91,139.87,25.0226]
[1724966379581,7.1475,139.91,139.87,17.8733]
[1724966380364,20.0,139.9,139.85,15.5125]
[1724966380694,7.15,139.86,139.85,15.5125]
[1724966381272,7.1496,139.87,139.85,15.5125]
[1724966383211,37.8706,139.9,139.85,15.5125]
[1724966383396,7.1491,139.88,139.85,15.5125]
[1724966384192,20.0,139.9,139.85,15.5125]
[1724966384397,20.0,139.96,139.87,7.1494]
[1724966384604,35.7217,139.98,139.87,7.1494]
[1724966384919,37.35668291,139.98,139.87,7.1494]
[1724966385415,7.147,139.92,139.87,7.1494]
[1724966385720,7.1475,139.91,139.87,7.1494]
[1724966391920,7.1475,139.91,139.86,7.1498]
[1724966392103,7.148,139.9,139.86,7.1498]
[1724966392419,20.0,139.89,139.85,15.5125]
[1724966393100,20.0,139.91,139.85,15.5125]
[1724966393301,7.1495,139.87,139.85,15.5125]
[1724966394824,7.1495,139.87,139.83,13.2342]
[1724966409246,7.1491,139.88,139.84,7.1509]
[1724966409548,7.1483,139.9,139.86,7.1499]
[1724966409853,20.0,139.89,139.85,7.1503]
[1724966410649,20.0,139.89,139.86,17.8747]
[1724966410827,20.0,139.94,139.86,17.8747]
[1724966411036,7.1483,139.9,139.86,25.0246]
[1724966411245,7.1483,139.9,139.86,17.8747]
[1724966411450,20.0,139.89,139.86,17.8747]
[1724966411616,27.1485,139.89,139.86,17.8747]
[1724966412930,7.1481,139.9,139.86,17.8747]
[1724966413523,7.1474,139.91,139.86,17.8747]
[1724966414526,7.1474,139.91,139.87,7.1494]
[1724966414946,7.1474,139.91,139.86,25.0245]
[1724966415844,7.148,139.9,139.86,25.0245]
[1724966424349,7.1475,139.91,139.87,7.1494]
[1724966435764,7.147,139.92,139.88,23.8033]
[1724966435963,20.0,139.91,139.89,6.4857]
[1724966436857,7.147,139.92,139.89,6.4857]
[1724966437176,20.0,139.91,139.89,6.4857]
[1724966438360,20.0,139.91,139.89,13.6341]
[1724966438695,20.0,139.92,139.89,13.6341]
[1724966444869,27.1469,139.92,139.89,6.4857]
[1724966445773,7.1475,139.91,139.89,6.4857]
[1724966446219,7.1479,139.9,139.89,6.4857]
[1724966446592,27.1472,139.92,139.89,6.4857]
[1724966447764,7.1475,139.91,139.89,6.4857]
[1724966448186,20.0,139.92,139.89,13.6341]
[1724966448594,7.1468,139.93,139.89,13.6341]
[1724966449100,7.146,139.94,139.9,7.1478]
[1724966449894,20.0,139.93,139.9,7.1478]
[1724966455594,20.0,139.93,139.89,24.3565]
[1724966455899,20.0,139.95,139.89,24.3565]
[1724966456509,20.0,139.96,139.89,24.3565]
[1724966456909,7.1468,139.93,139.89,31.5047]
[1724966458025,20.0,139.96,139.89,24.3565]
[1724966459316,7.1471,139.92,139.89,24.3565]
[1724966461790,27.1452,139.96,139.92,7.1468]
[1724966462003,7.1452,139.96,139.92,7.1468]
[1724966462402,7.1445,139.97,139.93,7.6008251]
[1724966462708,7.1445,139.97,139.94,16.6586]
[1724966463816,7.1439,139.98,139.95,7.04337872]
[1724966464191,20.0,139.97,139.95,6.5515]
[1724966465124,1.55857356,140.06,139.95,24.4143]
[1724966465433,7.1424,140.01,139.96,7.1445]
[1724966466322,7.1415,140.03,139.98,7.1435]
[1724966467008,7.1415,140.03,139.99,7.1433]
[1724966467329,7.1415,140.03,140.0,15.6928]
[1724966467910,7.1415,140.03,140.01,6.2174]
[1724966468325,7.1408,140.04,140.01,6.2174]
[1724966468534,20.0,140.03,140.01,6.2174]
[1724966469222,7.1404,140.05,140.01,6.2174]
[1724966469427,20.0,140.04,140.01,6.2174]
[1724966470111,20.0,140.06,140.01,6.2174]
[1724966471206,7.1418,140.02,140.01,6.2174]
[1724966472308,7.1413,140.03,140.01,6.2174]
[1724966474934,7.1418,140.02,140.01,6.2174]
[1724966476733,7.1414,140.03,140.01,6.2174]
[1724966478337,7.1413,140.03,140.01,6.2174]
[1724966479935,20.0,140.06,140.01,6.2174]
[1724966480147,7.1417,140.03,140.01,6.2174]
[1724966482744,7.1418,140.02,140.01,6.2174]
[1724966483341,7.39730117,140.12,140.02,17.8542]
[1724966483653,0.7888,140.15,140.02,17.8542]
[1724966483824,1.63498291,140.14,140.03,7.1412]
[1724966484748,7.1389,140.08,140.04,7.1407]
[1724966485551,20.0,140.07,140.04,7.1407]
[1724966486432,7.1378,140.1,140.06,7.1394]
[1724966486642,1.63498291,140.14,140.06,7.1394]
[1724966486643,1.63498291,140.14,140.06,16.6598]
[1724966487330,7.1373,140.11,140.07,7.1392]
[1724966487923,7.1373,140.11,140.06,23.7994]
[1724966488429,20.0,140.1,140.06,23.7994]
[1724966488729,20.0,140.1,140.07,24.9872]
[1724966488937,7.1377,140.11,140.07,17.8481]
[1724966489138,20.0,140.1,140.07,17.8481]
[1724966490528,27.1378,140.1,140.06,16.6598]
[1724966492333,7.1384,140.09,140.06,16.6598]
[1724966505374,27.1379,140.1,140.06,17.37077317]
[1724966506246,20.0,140.1,140.06,17.37077317]
[1724966506572,27.1378,140.1,140.07,0.7109224]
[1724966509472,27.1378,140.1,140.06,41.6486]
[1724966509671,7.1382,140.09,140.06,34.509]
[1724966511475,20.0,140.1,140.07,7.1392]
[1724966512480,27.1378,140.1,140.06,41.6486]
[1724966513976,20.0,140.1,140.07,7.1392]
[1724966515777,7.1374,140.11,140.07,7.1392]
[1724966515979,27.1377,140.1,140.06,48.2844]
[1724966525368,17.8365,140.17,140.08,17.8464]
[1724966525686,7.1359,140.14,140.1,7.1376]
[1724966525863,7.1359,140.14,140.1,8.56488483]
[1724966527874,7.1359,140.14,140.11,1.42718296]
[1724966528288,7.1353,140.15,140.11,7.1368]
[1724966528485,20.0,140.14,140.11,7.1368]
[1724966532203,7.1367,140.12,140.08,7.1384]
[1724966532493,7.1373,140.11,140.07,17.8479]
[1724966533387,7.1373,140.11,140.07,24.9869]
[1724966533906,17.8411,140.13,140.06,23.2956]
[1724966534121,7.1372,140.11,140.06,41.1444]
[1724966535387,7.1372,140.11,140.07,7.1392]
[1724966541024,20.0,140.14,140.06,23.2956]
[1724966541326,20.0,140.15,140.08,17.8458]
[1724966541501,7.1363,140.13,140.08,24.9842]
[1724966541704,20.0,140.12,140.08,24.9842]
[1724966542513,20.0,140.12,140.09,7.1382]
[1724966543728,0.7888,140.18,140.1,17.8441]
[1724966543903,45.7888,140.18,140.1,17.8441]
[1724966544814,7.136,140.14,140.1,24.9816]
[1724966552125,20.0,140.17,140.07,62.8473]
[1724966552326,20.0,140.17,140.07,17.8473]
[1724966553552,7.1371,140.12,140.08,7.1387]
[1724966564969,7.1364,140.13,140.08,7.1387]
[1724966565140,7.1364,140.13,140.09,7.138]
[1724966576102,7.1352,140.15,140.11,7.1371]
[1724966576274,20.0,140.14,140.11,7.1371]
[1724966583395,27.1357,140.14,140.1,7.1375]
[1724966597919,20.0,140.14,140.11,7.1369]
[1724966600961,20.0,140.14,140.12,7.1365]
[1724966601166,7.1347,140.16,140.12,7.1365]
[1724966601360,20.0,140.15,140.12,7.1365]
[1724966601569,27.1352,140.15,140.11,24.9796]
[1724966605679,20.0,140.15,140.06,23.2956]
[1724966605870,27.80813324,140.15,140.06,23.2956]
[1724966606061,7.1373,140.11,140.06,30.4352]
[1724966606782,7.1373,140.11,140.07,7.1392]
[1724966612971,17.8396,140.14,140.06,16.6598]
[1724966613293,20.0,140.13,140.06,23.7995]
[1724966614486,7.1378,140.1,140.06,23.7995]
[1724966615460,20.0,140.13,140.06,23.7995]
[1724966615666,7.1374,140.11,140.06,23.7995]
[1724966619075,20.0,140.13,140.06,16.6598]
[1724966619698,7.1378,140.1,140.06,23.7993]
[1724966621201,7.1373,140.11,140.07,7.1392]
[1724966630599,17.8422,140.12,140.06,16.6598]
[1724966631000,20.0,140.13,140.06,16.6598]
[1724966631196,20.0,140.14,140.06,16.6598]
[1724966631585,7.1377,140.1,140.06,23.7992]
[1724966631784,7.1374,140.11,140.06,23.7992]
[1724966631988,7.1378,140.1,140.06,16.6598]
[1724966632301,7.80813324,140.12,140.03,7.1412]
[1724966632597,20.0,140.09,140.03,7.1412]
[1724966633103,45.0,140.11,140.02,40.303]
[1724966633104,7.1401,140.06,140.02,40.303]
[1724966633402,7.1401,140.06,140.02,47.4448]
[1724966635411,7.1404,140.05,140.02,22.4492]
[1724966635908,7.1408,140.04,140.02,15.9935]
[1724966636885,7.1404,140.05,140.02,15.9935]
[1724966637905,7.1399,140.06,140.02,15.9935]
[1724966638092,20.0,140.05,140.02,15.9935]
[1724966638710,27.1403,140.05,140.02,15.9935]
[1724966642906,7.1408,140.04,140.02,15.9935]
[1724966643495,7.1413,140.03,140.02,15.9935]
[1724966645518,7.1409,140.04,140.02,15.9935]
[1724966646410,7.1413,140.03,140.02,15.9935]
[1724966646708,20.0,140.05,139.99,21.5847]
[1724966646907,7.1416,140.03,139.99,21.5847]
[1724966647413,7.1416,140.03,139.99,28.7277]
[1724966648995,7.1416,140.03,139.99,21.5847]
[1724966649199,7.1416,140.03,139.99,15.4454]
[1724966649796,7.1429,140.0,139.96,13.1589]
[1724966650408,7.1435,139.99,139.95,22.8758]
[1724966650710,7.1435,139.99,139.95,15.7306]
[1724966651516,7.1435,139.99,139.95,22.8759]
[1724966652089,17.855,140.02,139.95,15.7306]
[1724966652318,65.0,140.01,139.94,17.8639]
[1724966652609,17.8575,140.0,139.92,21.7448]
[1724966652793,65.0,139.99,139.92,21.7448]
[1724966653323,7.1454,139.95,139.92,21.7448]
[1724966654392,7.1454,139.95,139.92,15.7306]
[1724966655196,65.0,139.99,139.9,7.1478]
[1724966655197,7.1459,139.94,139.9,7.1478]
[1724966658219,7.145,139.96,139.9,17.8688]
[1724966658407,20.0,139.99,139.9,17.8688]
[1724966658603,7.1448,139.97,139.92,7.1468]
[1724966658815,20.0,139.96,139.92,7.1468]
[1724966659820,27.1451,139.96,139.92,7.1468]
[1724966663600,27.1451,139.96,139.9,17.8688]
[1724966663799,7.1454,139.95,139.91,7.1473]
[1724966666715,7.1454,139.95,139.9,25.0166]
[1724966674352,7.1454,139.95,139.91,7.1472]
[1724966683742,27.1449,139.96,139.92,7.1467]
[1724966685252,7.1455,139.95,139.91,7.1471]
[1724966688771,27.145,139.96,139.92,7.1468]
[1724966691072,7.1454,139.95,139.91,7.1471]
[1724966693459,20.0,139.96,139.89,16.4043]
[1724966693766,7.146,139.94,139.89,16.4043]
[1724966693979,7.1454,139.95,139.89,34.2751]
[1724966694143,20.0,139.94,139.89,34.2751]
[1724966695248,20.0,139.94,139.9,7.1479]
[1724966701573,7.1465,139.93,139.88,7.1485]
[1724966701761,20.0,139.92,139.88,7.1485]
[1724966702985,27.1469,139.92,139.87,7.1494]
[1724966703282,27.1469,139.92,139.88,7.1489]
[1724966703283,20.0,139.92,139.88,7.1489]
[1724966703655,27.1469,139.92,139.87,7.1494]
[1724966705173,7.1469,139.92,139.87,7.1494]
[1724966705372,9.12117735,139.97,139.86,17.8746]
[1724966705689,20.0,139.96,139.87,45.0]
[1724966705990,20.0,139.96,139.86,17.8746]
[1724966706277,20.0,139.96,139.87,45.0]
[1724966706783,20.0,139.96,139.86,17.8746]
[1724966707484,7.1465,139.93,139.88,7.1489]
[1724966707667,20.0,139.92,139.88,7.1489]
[1724966707975,20.0,139.92,139.89,7.1484]
[1724966709468,7.1454,139.95,139.88,17.8714]
[1724966709773,7.145,139.96,139.89,45.0]
[1724966709979,7.145,139.96,139.9,16.2465]
[1724966710861,20.0,139.95,139.9,16.2465]
[1724966711284,20.0,139.95,139.92,7.1468]
[1724966712801,20.0,139.95,139.91,7.1473]
[1724966713485,27.1456,139.95,139.9,41.2634]
[1724966713881,27.1456,139.95,139.91,7.1472]
[1724966717063,20.0,139.95,139.91,7.1472]
[1724966717265,9.09088652,140.0,139.93,25.0121]
[1724966717467,20.0,139.99,139.93,25.0121]
[1724966717690,7.1447,139.97,139.93,17.8658]
[1724966717881,20.0,139.96,139.93,17.8658]
[1724966723092,27.1449,139.96,139.93,17.8658]
[1724966727680,27.1449,139.96,139.92,7.1468]
[1724966732282,7.1455,139.95,139.91,7.1472]
[1724966734280,7.1472,139.92,139.88,7.1488]
[1724966734588,7.1474,139.91,139.87,25.0221]
[1724966734902,7.1479,139.9,139.87,17.8728]
[1724966735199,7.1479,139.9,139.86,15.2749]
[1724966735791,7.1485,139.89,139.86,15.2749]
[1724966735988,7.1489,139.88,139.84,17.877]
[1724966737399,7.1489,139.88,139.84,25.0279]
[1724966737598,7.1489,139.88,139.84,17.877]
[1724966740411,7.1489,139.88,139.84,25.0278]
[1724966742096,7.1485,139.89,139.85,7.1504]
[1724966748713,7.1493,139.88,139.84,25.0276]
[1724966749712,7.1486,139.89,139.85,7.1504]
[1724966750413,17.8668,139.93,139.84,17.877]
[1724966750414,7.149,139.88,139.84,25.0279]
[1724966752709,7.1497,139.87,139.84,17.877]
[1724966753600,7.149,139.88,139.84,25.0278]
[1724966754424,19.11171524,139.94,139.86,17.8748]
[1724966754608,20.0,139.93,139.86,33.3266]
[1724966754791,6.9246,139.96,139.88,17.872]
[1724966754996,7.1459,139.94,139.9,25.0173]
[1724966755719,7.1455,139.95,139.9,25.0173]
[1724966755926,7.1459,139.94,139.9,25.0173]
[1724966756522,20.0,139.93,139.9,25.0173]
[1724966757415,7.1469,139.92,139.88,7.1488]
[1724966757724,27.1464,139.93,139.88,7.1488]
[1724966760613,27.1464,139.93,139.89,7.1482]
[1724966762211,7.1464,139.93,139.89,7.1482]
[1724966769026,7.1459,139.94,139.9,7.1477]
[1724966769232,20.0,139.93,139.9,7.1477]
[1724966770125,27.1465,139.93,139.89,25.019]
[1724966775625,20.0,139.93,139.9,7.1478]
[1724966775831,27.1464,139.93,139.89,25.0189]
[1724966777445,7.1469,139.92,139.89,17.8706]
[1724966777608,27.1466,139.93,139.89,25.019]
[1724966777812,20.0,139.93,139.9,7.1479]
[1724966778631,20.0,139.93,139.91,7.147]
[1724966778935,7.2263,140.0,139.91,34.086]
[1724966780222,7.1439,139.98,139.91,34.086]
[1724966780448,20.0,139.97,139.93,7.1462]
[1724966782919,27.1445,139.97,139.93,7.1462]
[1724966784952,20.0,139.97,139.93,7.1462]
[1724966785629,20.0,139.97,139.94,7.1458]
[1724966785827,7.1434,139.99,139.95,7.1453]
[1724966786640,7.1429,140.0,139.96,7.1448]
[1724966788157,7.1429,140.0,139.95,7.1453]
[1724966788359,20.0,139.99,139.95,7.1453]
[1724966789038,20.0,139.99,139.96,7.1448]
[1724966789242,20.0,139.99,139.93,17.8656]
[1724966789553,7.1435,139.99,139.94,7.1455]
[1724966791356,20.0,140.01,139.95,33.4692]
[1724966791533,20.7888,140.04,139.95,33.4692]
[1724966792268,7.1428,140.0,139.96,7.1445]
[1724966792566,20.0,139.99,139.96,7.1445]
[1724966793057,7.1424,140.01,139.97,7.1443]
[1724966793263,0.7888,140.04,139.97,7.1443]
[1724966793264,20.0,140.0,139.97,7.1443]
[1724966793469,21.63532075,140.07,139.95,33.4692]
[1724966793470,7.63275279,140.07,139.99,17.8574]
[1724966793759,7.1393,140.07,140.01,17.8549]
[1724966794134,7.1389,140.08,140.03,7.1412]
[1724966795058,20.0,140.07,140.03,7.1412]
[1724966796068,27.1394,140.07,140.03,7.1412]
[1724966796438,20.0,140.07,140.01,17.8549]
[1724966796653,20.0,140.1,140.01,17.8549]
[1724966796872,7.1386,140.09,140.03,7.1413]
[1724966797369,7.1386,140.09,140.03,23.4531]
[1724966797545,7.1383,140.09,140.05,7.1401]
[1724966797742,7.1383,140.09,140.03,34.1644]
[1724966797939,7.1388,140.08,140.04,7.1406]
[1724966798145,20.0,140.07,140.04,7.1406]
[1724966798553,20.0,140.07,140.03,41.3056]
[1724966799646,27.1397,140.07,140.03,34.1644]
[1724966802451,20.0,140.07,140.03,41.3054]
[1724966807456,20.0,140.07,140.04,7.1405]
[1724966813271,7.1388,140.08,140.04,7.1405]
[1724966813471,17.8423,140.12,140.05,7.1402]
[1724966813973,7.1381,140.1,140.05,7.1402]
[1724966814884,20.0,140.09,140.05,7.1402]
[1724966815776,35.6595,140.22,140.06,66.70759]
[1724966815955,35.6595,140.22,140.06,66.83308]
[1724966816959,2.57558983,140.19,140.06,66.83308]
[1724966817477,7.1358,140.14,140.1,7.1377]
[1724966817676,7.1358,140.14,140.1,8.50297477]
[1724966822659,7.1353,140.15,140.11,1.36539462]
[1724966822861,20.0,140.14,140.11,16.60259462]
[1724966827991,20.0,140.14,140.11,23.73979462]
[1724966829580,7.134,140.18,140.14,7.1356]
[1724966830887,20.0,140.17,140.14,7.1356]
[1724966831088,20.0,140.17,140.14,7.1355]
[1724966832175,20.0,140.17,140.12,6.6202]
[1724966832176,20.0,140.17,140.15,24.9724]
[1724966832388,22.53398841,140.23,140.16,15.7163]
[1724966832910,7.1335,140.19,140.16,15.7163]
[1724966833084,20.0,140.18,140.16,15.7163]
[1724966834490,27.1339,140.18,140.16,15.7163]
[1724966836083,20.0,140.18,140.12,39.4728]
[1724966836274,20.0,140.19,140.12,39.4728]
[1724966836478,17.8347,140.18,140.12,15.0118]
[1724966836781,20.0,140.17,140.09,32.8567]
[1724966838292,7.136,140.14,140.1,7.1372]
[1724966838890,20.0,140.17,140.09,32.8567]
[1724966838891,20.0,140.13,140.09,15.0118]
[1724966839673,17.8371,140.16,140.09,15.0118]
[1724966839674,20.0,140.15,140.09,15.0118]
[1724966840257,7.1362,140.13,140.09,22.15]
[1724966840461,7.1362,140.13,140.09,15.0118]
[1724966842292,7.1362,140.13,140.09,22.1499]
[1724966855490,7.1367,140.12,140.09,15.0118]
[1724966856711,7.1363,140.13,140.09,22.1499]
[1724966858485,258.0,140.23,140.09,15.0118]
[1724966858684,258.0,140.23,140.12,15.0114]
[1724966859608,7.64741497,140.22,140.12,15.0114]
[1724966860396,7.1345,140.17,140.13,7.136]
[1724966860692,20.0,140.16,140.13,7.136]
[1724966861820,20.0,140.16,140.14,1.42698574]
[1724966863803,7.1335,140.19,140.15,28.8703]
[1724966865312,20.0,140.18,140.16,7.1345]
[1724966865518,20.0,140.19,140.15,21.7352]
[1724966865695,20.0,140.21,140.15,21.7352]
[1724966866095,7.1336,140.18,140.15,21.7352]
[1724966866316,7.1332,140.19,140.15,30.2972392]
[1724966866704,20.0,140.18,140.15,30.2972392]
[1724966867694,7.1328,140.2,140.15,30.2972392]
[1724966868007,20.0,140.19,140.15,30.2972392]
[1724966874122,7.1306,140.24,140.19,7.1331]
[1724966875800,7.1306,140.24,140.2,7.1325]
[1724966876711,7.1301,140.25,140.21,7.1317]
[1724966876919,7.1301,140.25,140.2,24.9631]
[1724966877424,20.0,140.24,140.2,24.9631]
[1724966878399,27.1307,140.24,140.2,24.9631]
[1724966880828,20.0,140.24,140.2,17.8306]
[1724966881032,7.1312,140.23,140.19,7.1331]
[1724966886420,7.1316,140.22,140.18,7.1335]
[1724966889042,7.1316,140.22,140.17,24.9685]
[1724966890955,7.1316,140.22,140.18,7.1336]
[1724966894461,2.61605658,140.25,140.16,21.9383]
[1724966894632,45.0,140.26,140.16,21.9383]
[1724966894836,7.1329,140.2,140.16,29.0729]
[1724966895342,7.1322,140.21,140.16,29.0729]
[1724966895648,7.1322,140.21,140.17,7.134]
[1724966900261,50.0,140.22,140.08,22.2731]
[1724966900492,11.87899525,140.2,140.08,22.2731]
[1724966900756,16.2934,140.18,140.08,22.2731]
[1724966900954,7.1373,140.11,140.08,22.2731]
[1724966901165,17.8385,140.15,140.08,22.2731]
[1724966901335,7.1368,140.12,140.08,22.2731]
[1724966901537,7.1368,140.12,140.08,29.4118]
[1724966902559,7.1373,140.11,140.07,7.1391]
[1724966903563,20.0,140.14,140.06,7.1397]
[1724966903772,7.1373,140.11,140.06,7.1397]
[1724966907663,7.1373,140.11,140.07,7.1392]
[1724966909542,17.8463,140.09,140.0,7.1426]
[1724966909842,30.78472566,140.08,140.0,7.1426]
[1724966911044,7.1406,140.05,140.0,7.1426]
[1724966919651,7.1437,139.99,139.89,51.5737]
[1724966919966,17.8551,140.02,139.93,25.0118]
[1724966919967,20.0,139.98,139.93,25.0118]
[1724966920176,20.0,139.98,139.93,17.8654]
[1724966920363,7.1445,139.97,139.93,25.0117]
[1724966923972,20.0,139.98,139.89,51.5737]
[1724966923973,7.145,139.96,139.91,7.147]
[1724966924176,7.145,139.96,139.92,45.0]
[1724966924676,7.145,139.96,139.92,52.1468]
[1724966925677,7.145,139.96,139.92,7.1468]
[1724966925978,7.1458,139.95,139.9,25.0171]
[1724966926196,7.1458,139.95,139.91,52.1473]
[1724966926495,7.145,139.96,139.91,52.1473]
[1724966927373,7.1456,139.95,139.91,7.1473]
[1724966927578,53.2989,139.98,139.9,17.8692]
[1724966927887,7.1457,139.95,139.9,25.017]
[1724966929661,7.1457,139.95,139.91,7.1474]
[1724966930070,53.2989,139.98,139.9,17.8692]
[1724966930254,64.08362566,139.98,139.9,17.8692]
[1724966930454,7.1459,139.94,139.9,17.8692]
[1724966930857,7.1459,139.94,139.9,25.017]
[1724966931985,7.1465,139.93,139.89,15.8339]
[1724966932278,64.08362566,139.98,139.89,15.8339]
[1724966932279,7.146,139.94,139.89,22.9819]
[1724966938088,7.1464,139.93,139.89,22.9819]
[1724966938262,64.08362566,139.98,139.89,15.8339]
[1724966938593,7.1467,139.93,139.89,15.8339]
[1724966939286,7.1476,139.91,139.89,15.8339]
[1724966939478,7.1471,139.92,139.89,15.8339]
[1724966940489,7.1474,139.91,139.88,6.1983]
[1724966943388,17.8654,139.94,139.88,6.1983]
[1724966943569,27.1468,139.93,139.88,13.3468]
[1724966944190,7.147,139.92,139.88,13.3468]
[1724966944791,20.0,139.93,139.9,17.8695]
[1724966945091,20.0,139.96,139.9,17.8695]
[1724966945290,20.0,139.97,139.9,17.8695]
[1724966945531,17.8629,139.96,139.88,6.1983]
[1724966945682,7.146,139.94,139.89,7.148]
[1724966945883,7.146,139.94,139.9,7.1478]
[1724966945884,20.0,139.93,139.9,7.1478]
[1724966946185,7.144,139.98,139.93,7.146]
[1724966946588,7.144,139.98,139.91,62.8682]
[1724966946589,26.79802566,140.01,139.96,7.1447]
[1724966946795,7.1433,139.99,139.94,17.8642]
[1724966947210,7.1429,140.0,139.94,23.8944]
[1724966948190,7.1429,140.0,139.95,7.1452]
[1724966950478,20.0,139.99,139.95,7.1452]
[1724966951293,20.0,139.99,139.95,22.2043]
[1724966951499,20.0,139.99,139.96,7.1448]
[1724966954001,20.0,139.99,139.95,22.2041]
[1724966954899,20.0,139.99,139.95,15.0591]
[1724966955090,7.1435,139.99,139.95,15.0591]
[1724966955899,7.1435,139.99,139.95,22.2042]
[1724966956101,20.0,140.02,139.96,7.1448]
[1724966957396,7.1428,140.0,139.96,7.1448]
[1724966957598,20.0,139.99,139.96,7.1448]
[1724966962179,7.1428,140.0,139.96,7.1448]
[1724966962390,20.0,139.99,139.96,7.1448]
[1724966963677,20.0,139.99,139.97,7.1442]
[1724966963882,20.0,140.0,139.96,25.0064]
[1724966964893,27.1429,140.0,139.96,25.0064]
[1724966977818,1.63663358,140.04,139.98,17.8594]
[1724966977992,7.1419,140.02,139.98,25.0031]
[1724966978617,7.1415,140.03,139.99,7.1433]
[1724966979516,20.0,140.02,139.99,7.1433]
[1724966980294,7.1415,140.03,139.99,7.1433]
[1724966980595,20.0,140.02,139.99,7.1433]
[1724966984105,20.0,140.02,139.99,13.4791]
[1724966984506,7.1415,140.03,139.99,13.4791]
[1724966984696,7.1409,140.04,140.0,7.1428]
[1724966986318,7.1404,140.05,140.01,7.1423]
[1724966986698,7.1399,140.06,140.02,7.1418]
[1724966986898,20.0,140.05,140.02,7.1418]
[1724966989321,20.0,140.05,140.01,7.1421]
[1724966994317,24.72627347,140.11,140.02,17.854]
[1724966994618,9.62647347,140.11,140.03,60.9624]
[1724966995119,9.62647347,140.11,140.04,6.6294]
[1724966995313,7.1384,140.09,140.05,7.1403]
[1724966996222,20.0,140.08,140.05,7.1403]
[1724966998610,20.0,140.08,140.04,31.6218]
[1724967004148,27.1389,140.08,140.04,31.6218]